Cogmind - Beta 15 --- EXPLORER MODE // 2025.07.07 @ 17:17:25 Player: EdibleCrab Result: Core destroyed Performance ------------- Evolutions (7) 3500 Regions Visited (18) 3600 Robots Destroyed (109) 545 Value Destroyed (5017) 5017 Prototype IDs (21) 420 Alien Tech Used (0) 0 Bonus (1008) 1008 TOTAL SCORE: 14090 Bonus ------- High Alert Combat Kills 10 Follower Combat Kills 298 Entered Garrisons 200 Used RIF Installer 500 Cogmind --------- Core Integrity 0/1300 Matter 50/300 Energy 565/565 System Corruption 3% Temperature Critical (527) Movement Immobile (Siege) Location -3/Armory Parts ------- > --- POWER (2) -------- Reinforced Antimatter Reactor Particle Reactor > --- PROPULSION (6) --- Heavy Shield Leg Heavy Shield Leg Heavy Shield Leg > --- UTILITY (10) ----- Advanced Heat Sink Advanced Heat Sink Large Storage Unit Heavy Armor Plating Layered Medium Armor Plating Heavy Insulated Plating Heavy Insulated Plating > --- WEAPON (4) ------- Enhanced Hardcell Cannon Enhanced Hardcell Cannon Enhanced Hardcell Cannon Fusion Bomb Launcher > --- INVENTORY (15) --- Reinforced Antimatter Reactor Heavy Shield Leg Heavy Shield Leg Advanced ECM Suite Enhanced Hardcell Cannon Peak State ------------ > --- POWER ------------ Reinforced Antimatter Reactor Reinforced Antimatter Reactor > --- PROPULSION ------- Heavy Shield Leg Heavy Shield Leg Heavy Shield Leg > --- UTILITY ---------- Advanced Heat Sink Advanced Heat Sink Advanced Heat Sink Heavy Armor Plating Layered Medium Armor Plating Heavy Insulated Plating Heavy Insulated Plating > --- WEAPON ----------- Enhanced Hardcell Cannon Enhanced Hardcell Cannon Enhanced Hardcell Cannon Fusion Bomb Launcher > --- INVENTORY -------- Heavy Shield Leg Heavy Shield Leg Advanced Heat Sink [Rating: 153] Favorites ----------- Power Ion Engine Engine Ion Engine Power Core Light Fission Core Reactor Reinforced Antimatter Reactor Propulsion Improved Treads Treads Improved Treads Leg Heavy Shield Leg Hover Unit Cooled Aerolev Unit Flight Unit Improved VTOL Module Utility Relay Coupler [Hunter] Device Experimental Sensor Array Storage Huge Storage Unit Processor Advanced Signal Interpreter Hackware Relay Coupler [Hunter] Protection Core Shielding Weapon Light EM Pulse Cannon Energy Gun Quantum Rifle Energy Cannon Light EM Pulse Cannon Ballistic Gun Enhanced Autogun Ballistic Cannon Enhanced Hardcell Cannon Launcher Long-range Missile Launcher Special Weapon Improved Remote Datajack Special Melee Weapon Improved Datajack Build | -11 -10 -9 -9 -9 -8 -8 -8 -8 -8 -6 -6 -6 -5 -4 -4 -4 -3 -3 ------- Run | Yrd Mat Mat Min Exi Min Mat Sto Gar Rec Fac Low Low Fac Fac Upp Upp Res Arm Slots Evolved 15 | . 1 2 . . . 2 . . . 4 . . 2 2 . . 2 . Power 1 | . . 1 . . . . . . . . . . . . . . . . Propulsion 4 | . . 1 . . . 2 . . . . . . 1 . . . . . Utility 8 | . 1 . . . . . . . . 4 . . 1 2 . . . . Weapon 2 | . . . . . . . . . . . . . . . . . 2 . Parts Attached 140 | 7 11 2 . . 1 14 13 3 7 16 3 . 5 11 5 . 14 28 Power 19 | 1 . 1 . . . 2 2 1 1 2 1 . 1 2 1 . 1 3 Engine 6 | 1 . 1 . . . . 1 . 1 1 . . . 1 . . . . Core 8 | . . . . . . 2 1 1 . 1 1 . 1 1 . . . . Reactor 5 | . . . . . . . . . . . . . . . 1 . 1 3 Propulsion 39 | 2 2 1 . . . 6 5 . 4 6 . . 1 . . . 4 8 Treads 11 | . 2 1 . . . 6 1 . . . . . . . . . . 1 Leg 6 | 2 . . . . . . . . . . . . . . . . 1 3 Wheel . | . . . . . . . . . . . . . . . . . . . Hover 11 | . . . . . . . . . . 6 . . 1 . . . 3 1 Flight 11 | . . . . . . . 4 . 4 . . . . . . . . 3 Utility 44 | 2 4 . . . 1 1 3 2 1 6 2 . 2 5 2 . 4 9 Device 18 | . 2 . . . . . . 1 . 3 1 . . 3 1 . 3 4 Storage 4 | 1 1 . . . . 1 . . . . . . . . . . . 1 Processor 4 | . 1 . . . . . 1 . . 2 . . . . . . . . Hackware 6 | . . . . . . . . 1 1 1 1 . 1 . 1 . . . Protection 12 | 1 . . . . 1 . 2 . . . . . 1 2 . . 1 4 Artifact . | . . . . . . . . . . . . . . . . . . . Weapon 38 | 2 5 . . . . 5 3 . 1 2 . . 1 4 2 . 5 8 Energy Gun 8 | 1 . . . . . . . . . . . . . 1 1 . 2 3 Energy Cannon 6 | . 4 . . . . 2 . . . . . . . . . . . . Ballistic Gun 9 | 1 . . . . . 2 3 . . 1 . . 1 . . . . 1 Ballistic Cannon 5 | . . . . . . . . . . . . . . 2 . . . 3 Launcher 6 | . 1 . . . . . . . . 1 . . . 1 . . 2 1 Special Weapon 2 | . . . . . . . . . . . . . . . 1 . 1 . Impact Weapon . | . . . . . . . . . . . . . . . . . . . Slashing Weapon . | . . . . . . . . . . . . . . . . . . . Piercing Weapon . | . . . . . . . . . . . . . . . . . . . Special Melee Weapon 2 | . . . . . . 1 . . 1 . . . . . . . . . Unidentified Prototypes 7 | . . . . . . . 3 1 . 1 . . . 1 . . 1 . Parts Lost 41 | . . . . . . . . 4 . 1 . . 1 7 . . 28 . Power 5 | . . . . . . . . 2 . . . . . 1 . . 2 . Propulsion 9 | . . . . . . . . . . 1 . . . 1 . . 7 . Utility 20 | . . . . . . . . 2 . . . . . 4 . . 14 . Weapon 7 | . . . . . . . . . . . . . 1 1 . . 5 . Highest Loss Streak 26 | . . . . . . . . 4 . 1 . . 1 4 . . 26 . To Critical Strikes 1 | . . . . . . . . . . . . . . . . . 1 . Average Backups 10 | 1 10 13 16 18 19 27 21 4 4 4 5 5 4 3 2 4 3 2 Power . | . 1 . . . . 2 1 . . . . . . . . . . . Propulsion 2 | . 4 5 5 5 5 3 3 . . . 1 1 . . . . . 1 Utility 5 | . 3 6 8 10 11 17 13 2 2 2 3 3 2 . . 1 . . Weapon 1 | . 1 2 2 3 3 3 1 . 1 . . . . . 1 2 1 . Tool/Special . | . . . . . . . . . . . . . . . . . . . Unused Backups 36 | . 2 . . . . . 17 2 1 3 . . 2 4 . . . 5 Power 1 | . . . . . . . 1 . . . . . . . . . . . Propulsion 6 | . . . . . . . 2 . 1 . . . . . . . . 3 Utility 26 | . 2 . . . . . 14 1 . 3 . . 2 3 . . . 1 Weapon 3 | . . . . . . . . 1 . . . . . 1 . . . 1 Tool/Special . | . . . . . . . . . . . . . . . . . . . Average Slot Usage (%) 88 | . 99 99 100 100 100 92 83 71 93 96 93 93 86 83 89 90 61 60 Engine 7 | . 12 20 20 20 20 2 2 2 5 6 . . . . 3 . . . Core 4 | . . . . . . 13 13 5 8 6 11 12 11 8 5 5 . . Reactor 1 | . . . . . . . . . . . . . . . 1 5 5 8 Treads 12 | . 11 29 30 30 30 40 18 . . . . . . . . . . . Leg 2 | . 13 . . . . . . . . . . . . . . . . 11 Hover 7 | . . . . . . . . . . 9 25 25 22 20 20 20 11 . Flight 2 | . . . . . . . 12 25 37 20 . . . . . . . . Device 9 | . 3 . . . . 5 8 6 8 10 17 18 10 18 24 25 14 10 Storage 4 | . 12 10 10 10 10 8 5 . . . . . . . . . . 1 Processor 5 | . 7 10 10 10 10 2 . . . 6 6 6 5 5 5 5 3 . Hackware 6 | . . . . . . . . 3 14 17 18 18 20 13 14 15 10 . Protection 7 | . 12 10 10 10 10 2 4 11 1 6 . . 4 10 5 5 2 12 Energy Gun 1 | . 1 . . . . . . . . . . . . 2 5 5 6 4 Energy Cannon 7 | . 21 20 20 20 20 10 . . . . . . . . . . . . Ballistic Gun 2 | . 1 . . . . 4 15 15 8 7 . 1 7 . . . . 1 Launcher 1 | . 1 . . . . . . . . . 6 6 2 . . . 1 2 Peak Build Rating 153 | 7 14 17 19 19 22 38 42 39 46 82 83 83 93 107 115 115 134 153 Average Rating 59 | 4 12 16 18 19 20 32 34 32 44 70 81 81 88 97 112 115 87 125 On Entrance 48 | . 7 14 17 19 19 22 37 31 38 46 82 81 83 92 104 115 115 3 Naked Turns 25 | . . . . . . . . . . . . . . . . . . 25 Heaviest Build 234 | 19 94 99 99 99 106 234 222 19 17 38 46 43 52 66 64 63 74 174 Greatest Support 180 | 20 46 69 69 69 69 115 103 15 25 56 47 47 58 58 58 58 60 180 Greatest Overweight (x) 44 | 5 2 1 1 1 1 2 44 1 1 1 . . . 1 1 1 4 15 Average Overweight (x) . | . 1 1 1 1 1 1 1 . . . . . . . . 1 . . Largest Inventory Capacity 35 | 10 25 25 25 25 25 35 35 5 5 5 5 5 5 5 5 5 5 15 Average Capacity 14 | 9 15 25 25 25 25 32 25 5 5 5 5 5 5 5 5 5 5 7 Most Carried 35 | 2 15 14 18 20 25 35 35 5 5 5 5 5 5 5 4 4 5 7 Average Carried 10 | 1 11 13 16 18 21 28 21 4 4 4 4 5 4 3 2 4 3 4 Final Capacity 35 | 10 25 25 25 25 25 35 5 5 5 5 5 5 5 5 5 5 5 15 Final Carried 33 | 2 15 14 18 20 25 33 4 3 5 5 5 5 5 3 4 4 4 7 Class Distribution -------------------- 78% | Hacker-Mutant 8% | Scavenger-Tank 6% | Hauler-Mutant 4% | Hacker-Sprinter Dominant Class ---------------- Hacker-Mutant | -10/Materials Hacker-Mutant | -9/Materials Hacker-Mutant | -9/Mines Hacker-Mutant | -9/Exiles Hacker-Mutant | -8/Mines Hauler-Mutant | -8/Materials Hauler-Mutant | -8/Storage Hacker-Sprinter | -8/Garrison Hacker-Sprinter | -8/Recycling Hacker-Sprinter | -6/Factory Hacker-Mutant | -6/Lower Caves Hacker-Mutant | -6/Lower Caves Hacker-Mutant | -5/Factory Hacker-Mutant | -4/Factory Hacker-Mutant | -4/Upper Caves Hacker-Mutant | -4/Upper Caves Hacker-Tank | -3/Research Scavenger-Tank | -3/Armory Resources | -11 -10 -9 -9 -9 -8 -8 -8 -8 -8 -6 -6 -6 -5 -4 -4 -4 -3 -3 ----------- Run | Yrd Mat Mat Min Exi Min Mat Sto Gar Rec Fac Low Low Fac Fac Upp Upp Res Arm Matter Collected 4846 | 259 113 70 200 . 10 60 527 231 253 68 305 100 628 294 451 . 67 1210 Remotely 10 | . . . . . . . . . . . . . . . . . 10 . Salvage Created 3765 | . 71 171 161 . 219 60 833 332 . 23 . 86 607 305 55 . 86 756 Parts 180 | . 8 2 12 . 13 4 40 18 . . . 3 26 19 3 . 8 24 Haulers Intercepted 1 | . . . . . . . 1 . . . . . . . . . . . Recyclers Shooed 2 | . . . . . . . 1 . . . . . 1 . . . . . Parts Field Recycled . | . . . . . . . . . . . . . . . . . . . Retrieved Matter . | . . . . . . . . . . . . . . . . . . . Parts Self-Destructed . | . . . . . . . . . . . . . . . . . . . Prevented . | . . . . . . . . . . . . . . . . . . . Kills | -11 -10 -9 -9 -9 -8 -8 -8 -8 -8 -6 -6 -6 -5 -4 -4 -4 -3 -3 ------- Run | Yrd Mat Mat Min Exi Min Mat Sto Gar Rec Fac Low Low Fac Fac Upp Upp Res Arm Combat Hostiles Destroyed 91 | . 4 2 5 . 6 1 15 8 . . . 3 16 3 2 . 5 21 Guns 37 | . 2 . . . . . 15 8 . . . . 5 . 2 . 2 3 Cannons 28 | . 2 2 4 . 5 1 . . . . . . . 3 . . . 11 AOE 25 | . . . . . 1 . . . . . . 3 11 . . . 3 7 Classes Destroyed 16 | . 1 3 . . 1 1 5 1 . . . . 2 1 . . 1 . Worker 2 | . . . . . . . 1 . . . . . . 1 . . . . Builder 2 | . . . . . . . . . . . . . 1 1 . . . . Tunneler 1 | . . . . . . . . . . . . . . 1 . . . . Hauler 1 | . . . . . . . 1 . . . . . . . . . . . Recycler 5 | . . 1 . . . . 2 . . . . . 1 1 . . . . Mechanic 2 | . . . . . . . 1 . . . . . 1 . . . . . Watcher 10 | . . 1 . . . . 2 . . 1 . . 3 3 . . . . Swarmer 27 | . 4 . 3 . 3 . 3 3 . . . . 4 . 2 . . 5 Grunt 24 | . . 2 2 . 2 . 9 . . . . 2 3 . . . . 4 Brawler 2 | . . . . . . . 1 . . . . 1 . . . . . . Protector 1 | . . . . . . . 1 . . . . . . . . . . . Sentry 9 | . . . . . . 1 1 2 . . . . . . . . . 5 Specialist 1 | . . . . . . . . 1 . . . . . . . . . . Hunter 9 | . . . . . 1 . . 2 . . . . 4 . . . . 2 Programmer 13 | . . . . . . . . . . . . . 5 3 . . . 5 Assembled 5 | . . . . . . . . . . . . . . . . . 5 . Best Kill Streak 9 | . 2 3 3 . 3 1 7 3 . 1 . 2 9 5 2 . 5 5 Combat Bots Only 6 | . 2 2 3 . 3 1 6 3 . . . 2 4 1 2 . 5 5 Max Kills in Single Turn 3 | . 1 2 2 . 1 1 2 2 . 1 . 1 3 2 1 . 3 2 Gunslinging 1 | . . . . . . . . 1 . . . . . . . . . . Exploded 3 | . . . . . 1 . . . . . . 1 3 . . . 3 1 Melee . | . . . . . . . . . . . . . . . . . . . Uniques/NPCs Destroyed . | . . . . . . . . . . . . . . . . . . . Combat | -11 -10 -9 -9 -9 -8 -8 -8 -8 -8 -6 -6 -6 -5 -4 -4 -4 -3 -3 -------- Run | Yrd Mat Mat Min Exi Min Mat Sto Gar Rec Fac Low Low Fac Fac Upp Upp Res Arm Hostile Shots Fired 971 | . 20 5 11 . 16 2 85 227 . 11 . 11 72 184 11 . 160 156 Missed 326 | . 6 1 2 . 2 1 23 80 . 5 . 3 36 81 7 . 36 43 Deflected 4 | . . . . . . . . . . . . . . . . . . 4 Hits 645 | . 14 4 9 . 14 1 62 147 . 6 . 8 36 103 4 . 124 113 Melee 13 | . . . . . . . 5 . . 1 . . . . . . 7 . Projectile 632 | . 14 4 9 . 14 1 57 147 . 5 . 8 36 103 4 . 117 113 AOE 41 | . . . . . . . . . . . . . . . . . 41 . Critical Strikes 33 | . . . . . . 1 5 3 . . . . 2 8 . . 7 7 Actively Blocked 4 | . . . . . . . 1 . . . . . 1 2 . . . . Part Disruptions 4 | . . . . . . . . . . . . . . 1 1 . 2 . Actively Blocked 1 | . . . . . . . . . . . . . . 1 . . . . Damage Taken 8067 | . 56 40 66 . 110 6 426 848 . 92 . 49 616 1186 50 . 2655 1867 Core 1915 | . 3 5 4 . . . 36 220 . . . 6 41 100 13 . 1036 451 Absorbed by Shields 668 | . 16 . . . . 3 177 244 . 22 . 53 19 65 . . 69 . Redirected to Shielding 374 | . . 1 1 . . . 9 124 . 13 . . 48 121 . . 57 . Ignored by Resistances 5750 | . 52 25 41 . 68 5 365 670 . 65 . 58 257 1344 36 . 1569 1195 Regen/Repaired (Parts) 92 | . . . . . . . . . . . . . 24 68 . . . . Core Remaining (%) 90 | 100 98 . . . 97 . . . 53 . . 99 95 . . 90 . . Volleys Fired 268 | . 11 4 6 . 11 1 39 43 . 6 . 8 45 23 9 1 11 50 Largest 4 | . 2 2 2 . 2 2 2 2 . 2 . 1 2 2 1 1 3 4 Hottest 292 | . 112 112 112 . 112 126 50 50 . 50 . 43 63 143 94 7 237 292 Shots Fired 506 | . 14 8 12 . 22 2 78 86 . 12 . 8 63 26 11 1 17 146 Gun 307 | . 4 . . . . . 78 86 . 12 . 1 37 14 7 . 10 58 Cannon 131 | . 7 8 12 . 22 2 . . . . . . . 9 . . . 71 Launcher 63 | . 3 . . . . . . . . . . 7 26 3 . . 7 17 Special 5 | . . . . . . . . . . . . . . . 4 1 . . Kinetic 317 | . 4 . . . . . 78 86 . 12 . 1 37 9 . . . 90 Thermal 70 | . . . . . . . . . . . . . . 14 7 . 10 39 Explosive 63 | . 3 . . . . . . . . . . 7 26 3 . . 7 17 Electromagnetic 51 | . 7 8 12 . 22 2 . . . . . . . . . . . . Robot Hit Streak 40 | . 3 8 18 . 36 38 40 20 . 6 . 1 23 14 7 3 7 20 Robot Miss Streak 4 | . 1 . . . . . 4 2 . 1 . 1 2 1 1 . 1 3 Penetration Max 1 | . . . . . . . . . . . . . 1 . . . . . Secondary Targets 6 | . . . . . . . 4 1 . . . . 1 . . . . . Max Gunslinging Chain 1 | . . . . . . . 1 1 . . . . 1 . . . . . Shots Hit Robots 369 | . 7 7 10 . 18 3 65 78 4 13 3 1 26 21 7 1 11 94 Core Hits 234 | . 5 5 5 . 10 1 46 21 . 2 . 8 42 19 2 . 20 48 Critical Kills 1 | . . . . . . . . 1 . . . . . . . . . . Critical Parts Destroyed 3 | . . . . . . . . . . . . . . 2 . . . 1 Critical Strikes 9 | . . . . . . . . 1 . . . . . 4 . . . 4 Destroy 4 | . . . . . . . . 1 . . . . . 2 . . . 1 Blast 5 | . . . . . . . . . . . . . . 2 . . . 3 Melee Attacks 21 | . . . . . . 1 1 5 4 7 3 . . . . . . . Impact . | . . . . . . . . . . . . . . . . . . . Slashing . | . . . . . . . . . . . . . . . . . . . Piercing . | . . . . . . . . . . . . . . . . . . . Sneak Attacks 10 | . . . . . . 1 . . 1 6 2 . . . . . . . Combat Hostiles . | . . . . . . . . . . . . . . . . . . . Follow-up Attacks . | . . . . . . . . . . . . . . . . . . . Damage Inflicted 14948 | . 121 307 242 . 431 41 1508 1053 . 120 . 409 3275 1351 82 . 1319 4689 Guns 5200 | . 36 . . . . . 1497 1053 . 120 . . 814 378 82 . 197 1023 Cannons 3315 | . 78 154 242 . 365 41 . . . . . . . 301 . . . 2134 Explosions 6381 | . 7 153 . . 66 . . . . . . 409 2461 631 . . 1122 1532 Melee . | . . . . . . . . . . . . . . . . . . . Ramming 52 | . . . . . . . 11 . . . . . . 41 . . . . Kinetic 6267 | . 36 . . . . . 1497 1053 . 120 . . 814 301 . . . 2446 Thermal 1587 | . . 153 . . 66 . . . . . . . . 378 82 . 197 711 Explosive 6044 | . 7 . . . . . . . . . . 409 2461 513 . . 1122 1532 Electromagnetic 998 | . 78 154 242 . 365 41 . . . . . . . 118 . . . . Impact . | . . . . . . . . . . . . . . . . . . . Slashing . | . . . . . . . . . . . . . . . . . . . Piercing . | . . . . . . . . . . . . . . . . . . . Highest Corruption 6 | . . . . . . . . . . . . . 2 6 6 6 1 3 Average Corruption 3 | . . . . . . . . . . . . . 1 2 6 6 1 1 Corruption Purged . | . . . . . . . . . . . . . . . . . . . Corruption Blocked . | . . . . . . . . . . . . . . . . . . . Effects 53 | . . . . . . . . . . . . . 2 5 31 2 1 12 Message Errors 14 | . . . . . . . . . . . . . 1 2 9 1 . 1 Matter Fused 17 | . . . . . . . . . . . . . . . 11 . 1 5 Heat Flow Errors 6 | . . . . . . . . . . . . . . 1 1 1 . 3 Energy Discharges 4 | . . . . . . . . . . . . . 1 1 1 . . 1 Parts Fused 1 | . . . . . . . . . . . . . . . 1 . . . Data Loss (minor) 6 | . . . . . . . . . . . . . . 1 3 . . 2 Data Loss (major) 3 | . . . . . . . . . . . . . . . 3 . . . Misfires 2 | . . . . . . . . . . . . . . . 2 . . . Overload Shots . | . . . . . . . . . . . . . . . . . . . Overflow Damage 526 | . . . . . . . . . . . . . 94 97 . . 116 219 Projectiles 157 | . . . . . . . . . . . . . . . . . . 157 Explosions 369 | . . . . . . . . . . . . . 94 97 . . 116 62 Melee . | . . . . . . . . . . . . . . . . . . . Knockbacks 12 | . . . . . . . . . . . . . . 3 . . . 9 Impact . | . . . . . . . . . . . . . . . . . . . Kinetic 12 | . . . . . . . . . . . . . . 3 . . . 9 Secondary . | . . . . . . . . . . . . . . . . . . . Self-Inflicted Damage 479 | . . 13 . . . . 1 . . . . . . 330 . . 45 90 Shots 14 | . . 1 . . . . . . . . . . . 7 . . 2 4 Rammed 3 | . . . . . . . 2 . . . . . . 1 . . . . Targets Rammed 3 | . . . . . . . 2 . . . . . . 1 . . . . Kicked . | . . . . . . . . . . . . . . . . . . . Crushed . | . . . . . . . . . . . . . . . . . . . Highest Temperature 573 | . 153 195 240 . 228 75 91 134 288 51 . 16 46 277 266 93 461 573 Average Temperature 93 | . 71 87 92 . 96 43 33 44 100 15 . 6 10 92 88 48 234 171 Received Heat Transfer 1242 | . . 24 45 . 45 . 281 195 . 30 . 16 22 57 12 . 294 221 Effects 21 | . . . 1 . . . . . 1 . . . . . . . 2 17 Shutdowns 8 | . . . . . . . . . . . . . . . . . 2 6 Energy Bleed 2 | . . . . . . . . . 1 . . . . . . . . 1 Interference 4 | . . . 1 . . . . . . . . . . . . . . 3 Matter Decay 2 | . . . . . . . . . . . . . . . . . . 2 Short Circuit 1 | . . . . . . . . . . . . . . . . . . 1 Damage (minor) 2 | . . . . . . . . . . . . . . . . . . 2 Damage (core) 2 | . . . . . . . . . . . . . . . . . . 2 Siege Activations . | . . . . . . . . . . . . . . . . . . . Martial Activations . | . . . . . . . . . . . . . . . . . . . Shielding Activations 3 | . . . . . . . . . . . . . . . . . . 3 Total Turns 29 | . . . . . . . . . . . . . . . . . . 29 Longest Duration 22 | . . . . . . . . . . . . . . . . . . 22 Robots Disrupted . | . . . . . . . . . . . . . . . . . . . Combat Hostiles . | . . . . . . . . . . . . . . . . . . . Robots Corrupted 1 | . . . 1 . . . . . . . . . . . . . . . Combat Hostiles 1 | . . . 1 . . . . . . . . . . . . . . . Parts Fried 3 | . . 1 1 . 1 . . . . . . . . . . . . . Impact Corruptions . | . . . . . . . . . . . . . . . . . . . Robots Melted . | . . . . . . . . . . . . . . . . . . . Combat Hostiles . | . . . . . . . . . . . . . . . . . . . Parts Melted 4 | . . 1 . . . . . . . . . . . . 1 . . 2 Heat Transferred 2063 | . . 250 . . . . . . . . . . . 444 111 . 259 999 Parts Sabotaged . | . . . . . . . . . . . . . . . . . . . Parts Stolen . | . . . . . . . . . . . . . . . . . . . Parts Stripped . | . . . . . . . . . . . . . . . . . . . Power Chain Reactions 3 | . . 2 . . 1 . . . . . . . . . . . . . Alert | -11 -10 -9 -9 -9 -8 -8 -8 -8 -8 -6 -6 -6 -5 -4 -4 -4 -3 -3 ------- Run | Yrd Mat Mat Min Exi Min Mat Sto Gar Rec Fac Low Low Fac Fac Upp Upp Res Arm Maximum Alert Level 2 | . . . . . . . . 1 . . . . 1 1 . . . 2 Low Security (%) 89 | 100 100 100 100 . 100 100 100 54 100 100 . . 82 99 . . 100 54 Level 1 9 | . . . . . . . . 45 . . . . 17 . . . . 45 Level 2 . | . . . . . . . . . . . . . . . . . . . Level 3 . | . . . . . . . . . . . . . . . . . . . Level 4 . | . . . . . . . . . . . . . . . . . . . Level 5 . | . . . . . . . . . . . . . . . . . . . High Security . | . . . . . . . . . . . . . . . . . . . Max Security . | . . . . . . . . . . . . . . . . . . . Peak Influence 400 | . 40 47 70 . 55 30 177 374 121 91 . . 297 207 . . 99 400 Initial 121 | . . 1 8 . . 6 . 14 121 53 . . 4 11 . . . 3 Average 54 | . 3 3 3 . 5 3 49 175 70 43 . . 125 38 . . 7 153 Influence Increases 4029 | . 134 59 120 . 159 30 422 420 12 296 . 70 613 427 40 . 220 1007 Destroy 0b10 Robot/C 1860 | . 80 40 100 . 120 20 320 180 . 100 . 60 320 60 40 . . 420 Destroy 0b10 Robot/NC 150 | . . 10 . . . . 45 . . 10 . . 30 35 . . 20 . Destroy Leader 392 | . 20 2 20 . 30 10 56 10 . 22 . 10 76 26 . . . 110 Allied During Kill 2 | . . . . . . . 1 . . . . . . . . . . 1 Successful Hack 117 | . 10 . . . . . . . 12 14 . . 23 34 . . . 24 Disable Machine 168 | . . . . . 4 . . . . 16 . . 16 96 . . 8 28 Anti-Garrison Action 50 | . . . . . . . . 50 . . . . . . . . . . Destroy Structure 865 | . 24 7 . . 5 . . . . 9 . . 148 116 . . 162 394 Advance Influence 50 | . . . . . . . . . . 50 . . . . . . . . Partial Spotted 135 | . . . . . . . . 30 . 30 . . . 60 . . . 15 Lose Combat Pursuer 240 | . . . . . . . . 150 . 45 . . . . . . 30 15 Influence Decreases 3644 | . 129 32 152 . 135 54 392 76 373 272 37 60 590 460 40 . 210 632 Entered New Map 380 | . . 4 24 . . 18 . 16 253 10 20 . 6 22 . . . 7 Time Decay 2860 | . 129 28 128 . 135 36 352 . 120 252 17 60 574 359 40 . 45 585 Lost Part 275 | . . . . . . . . 40 . 10 . . 10 50 . . 165 . Lost Ally 129 | . . . . . . . 40 20 . . . . . 29 . . . 40 Squads Dispatched 25 | . . . . . . . 2 . . 1 . . 6 9 . . 2 5 Investigation 6 | . . . . . . . . . . . . . . 4 . . . 2 Extermination 10 | . . . . . . . . . . 1 . . 2 3 . . 1 3 Reinforcement 7 | . . . . . . . . . . . . . 4 2 . . 1 . Assault 2 | . . . . . . . 2 . . . . . . . . . . . Garrison . | . . . . . . . . . . . . . . . . . . . Intercept . | . . . . . . . . . . . . . . . . . . . Searches Triggered . | . . . . . . . . . . . . . . . . . . . Construction Impeded 1 | . . . . . . . . . . . . . 1 . . . . . Haulers Reinforced 1 | . . . . . . . . . . . . . 1 . . . . . Active Scanning Responses . | . . . . . . . . . . . . . . . . . . . Cargo Convoy Interrupts . | . . . . . . . . . . . . . . . . . . . Stealth | -11 -10 -9 -9 -9 -8 -8 -8 -8 -8 -6 -6 -6 -5 -4 -4 -4 -3 -3 --------- Run | Yrd Mat Mat Min Exi Min Mat Sto Gar Rec Fac Low Low Fac Fac Upp Upp Res Arm Distress Signals 5 | . . . . . . . 2 . . . . . 2 1 . . . . Communications Jammed . | . . . . . . . . . . . . . . . . . . . Distress Signals . | . . . . . . . . . . . . . . . . . . . Times Spotted 200 | . 4 5 5 . 6 1 26 24 . 11 . 7 31 25 7 . 22 26 Peak Tracking Total 15 | . 2 2 2 . 2 1 7 10 . 4 . 3 6 7 9 . 15 4 Tactical Retreats 36 | . . . . . . . . 4 . 3 . 4 8 8 5 . 3 1 Traps | -11 -10 -9 -9 -9 -8 -8 -8 -8 -8 -6 -6 -6 -5 -4 -4 -4 -3 -3 ------- Run | Yrd Mat Mat Min Exi Min Mat Sto Gar Rec Fac Low Low Fac Fac Upp Upp Res Arm Traps Triggered 14 | . . . . . . . 1 5 . 1 . . . 2 . . 1 4 Indirectly . | . . . . . . . . . . . . . . . . . . . Trap Hack Attempts . | . . . . . . . . . . . . . . . . . . . Triggered . | . . . . . . . . . . . . . . . . . . . Disarmed . | . . . . . . . . . . . . . . . . . . . Reprogrammed . | . . . . . . . . . . . . . . . . . . . Reused . | . . . . . . . . . . . . . . . . . . . Traps Extracted . | . . . . . . . . . . . . . . . . . . . Installed . | . . . . . . . . . . . . . . . . . . . Triggered . | . . . . . . . . . . . . . . . . . . . Machines | -11 -10 -9 -9 -9 -8 -8 -8 -8 -8 -6 -6 -6 -5 -4 -4 -4 -3 -3 ---------- Run | Yrd Mat Mat Min Exi Min Mat Sto Gar Rec Fac Low Low Fac Fac Upp Upp Res Arm Machines Disabled 43 | . . . . . 1 . . 1 . 4 . . 4 24 . . 2 7 Max in Single Turn 12 | . . . . . 1 . . 1 . . . . 1 12 . . 1 1 Garrison Relay 1 | . . . . . . . . 1 . . . . . . . . . . Machines Repaired . | . . . . . . . . . . . . . . . . . . . Machines Dismantled . | . . . . . . . . . . . . . . . . . . . Machines Sabotaged . | . . . . . . . . . . . . . . . . . . . Overloaded Fab Kills . | . . . . . . . . . . . . . . . . . . . Hacking | -11 -10 -9 -9 -9 -8 -8 -8 -8 -8 -6 -6 -6 -5 -4 -4 -4 -3 -3 --------- Run | Yrd Mat Mat Min Exi Min Mat Sto Gar Rec Fac Low Low Fac Fac Upp Upp Res Arm Machines Accessed 48 | . 4 . . 4 . 1 4 1 3 5 . . 5 13 1 . 2 5 Terminals 28 | . 4 . . . . 1 2 1 3 2 . . 4 8 . . 2 1 Fabricators 6 | . . . . . . . . . . 2 . . . 1 . . . 3 Repair Stations 2 | . . . . . . . . . . . . . 1 1 . . . . Recycling Units 5 | . . . . . . . 1 . . 1 . . . 2 . . . 1 Scanalyzers . | . . . . . . . . . . . . . . . . . . . Garrison Access 2 | . . . . . . . 1 . . . . . . 1 . . . . Total Hacks 110 | . 11 . . 4 . 2 13 1 7 9 . . 18 32 1 . 3 9 Successful 71 | . 8 . . 4 . 1 7 1 3 6 . . 14 18 1 . 2 6 Failed 39 | . 3 . . . . 1 6 . 4 3 . . 4 14 . . 1 3 Catastrophic 4 | . . . . . . . . . . . . . 1 3 . . . . Database Lockouts . | . . . . . . . . . . . . . . . . . . . Manual . | . . . . . . . . . . . . . . . . . . . Terminals 74 | . 11 . . . . 2 10 1 7 4 . . 16 18 . . 3 2 Fabricators 10 | . . . . . . . . . . 2 . . . 4 . . . 4 Repair Stations 4 | . . . . . . . . . . . . . 2 2 . . . . Recycling Units 15 | . . . . . . . 2 . . 3 . . . 7 . . . 3 Scanalyzers . | . . . . . . . . . . . . . . . . . . . Garrison Access 2 | . . . . . . . 1 . . . . . . 1 . . . . Terminal Hacks 47 | . 8 . . 4 . 1 4 1 3 3 . . 12 8 1 . 2 . Record 6 | . 1 . . 4 . . . . . . . . . 1 . . . . Robot Schematic 1 | . . . . . . . . . . 1 . . . . . . . . Robot Analysis 1 | . . . . . . . . . . . . . . 1 . . . . Prototype ID Bank 5 | . . . . . . . 1 . . 1 . . 1 1 . . 1 . Open Door 1 | . . . . . . . . . . . . . . . 1 . . . Open DSF 4 | . . . . . . . . . . 1 . . . 2 . . 1 . Level Access Points 1 | . . . . . . . . . . . . . 1 . . . . . Branch Access Points 4 | . 1 . . . . . 1 . 1 . . . 1 . . . . . Emergency Access Points 1 | . . . . . . . . 1 . . . . . . . . . . Garrison Index 1 | . . . . . . . . . . . . . . 1 . . . . Alert Level 2 | . . . . . . . . . . . . . 2 . . . . . Locate Traps 8 | . 3 . . . . . 1 . . . . . 2 2 . . . . Security Status 1 | . . . . . . . . . . . . . 1 . . . . . Investigation Status 2 | . . . . . . . . . . . . . 2 . . . . . Hauler Manifests 2 | . 1 . . . . . 1 . . . . . . . . . . . Registered Components 2 | . 1 . . . . . . . . . . . 1 . . . . . Registered Prototypes 1 | . . . . . . . . . 1 . . . . . . . . . Zone Layout 4 | . 1 . . . . 1 . . 1 . . . 1 . . . . . Fabricator Hacks 7 | . . . . . . . . . . 1 . . . 3 . . . 3 Network Status 1 | . . . . . . . . . . 1 . . . . . . . . Load Schematic 3 | . . . . . . . . . . . . . . 2 . . . 1 Build 3 | . . . . . . . . . . . . . . 1 . . . 2 Repair Station Hacks 4 | . . . . . . . . . . . . . 2 2 . . . . Scan Component 2 | . . . . . . . . . . . . . 1 1 . . . . Repair 2 | . . . . . . . . . . . . . 1 1 . . . . Recycling Unit Hacks 11 | . . . . . . . 2 . . 2 . . . 4 . . . 3 Report Inventory 5 | . . . . . . . 1 . . 1 . . . 2 . . . 1 Retrieve Matter 3 | . . . . . . . . . . . . . . 2 . . . 1 Retrieve Components 3 | . . . . . . . 1 . . 1 . . . . . . . 1 Scanalyzer . | . . . . . . . . . . . . . . . . . . . Garrison Access Hacks 2 | . . . . . . . 1 . . . . . . 1 . . . . Unlock Access 1 | . . . . . . . 1 . . . . . . . . . . . Coupler Status 1 | . . . . . . . . . . . . . . 1 . . . . Unauthorized Hacks . | . . . . . . . . . . . . . . . . . . . Terminals . | . . . . . . . . . . . . . . . . . . . Fabricators . | . . . . . . . . . . . . . . . . . . . Repair Stations . | . . . . . . . . . . . . . . . . . . . Recycling Units . | . . . . . . . . . . . . . . . . . . . Scanalyzers . | . . . . . . . . . . . . . . . . . . . Garrison Access . | . . . . . . . . . . . . . . . . . . . Data Cores Recovered . | . . . . . . . . . . . . . . . . . . . Used . | . . . . . . . . . . . . . . . . . . . Hacking Detections 30 | . 2 . . . . 1 3 1 3 3 . . 4 11 . . . 2 Full Trace Events 7 | . . . . . . . 1 . 1 . . . . 4 . . . 1 Feedback Events . | . . . . . . . . . . . . . . . . . . . Feedback Blocked . | . . . . . . . . . . . . . . . . . . . Robot Schematics Acquired 1 | . . . . . . . . . . 1 . . . . . . . . Robots Built 5 | . . . . . . . . . . . . . . 2 . . . 3 Authchips . | . . . . . . . . . . . . . . . . . . . Time 304 | . . . . . . . . . . . . . . 152 . . . 152 Total Robot Build Rating 25 | . . . . . . . . . . . . . . 10 . . . 15 Part Schematics Acquired . | . . . . . . . . . . . . . . . . . . . Parts Built . | . . . . . . . . . . . . . . . . . . . Authchips . | . . . . . . . . . . . . . . . . . . . Time . | . . . . . . . . . . . . . . . . . . . Total Part Build Rating . | . . . . . . . . . . . . . . . . . . . Parts Repaired 2 | . . . . . . . . . . . . . 1 1 . . . . Time 127 | . . . . . . . . . . . . . 108 19 . . . . Parts Recycled . | . . . . . . . . . . . . . . . . . . . Recycled Matter . | . . . . . . . . . . . . . . . . . . . Retrieved Matter . | . . . . . . . . . . . . . . . . . . . Retrieved Components 10 | . . . . . . . 9 . . 1 . . . . . . . . Parts Scanalyzed . | . . . . . . . . . . . . . . . . . . . Part Schematics Acquired . | . . . . . . . . . . . . . . . . . . . Parts Damaged . | . . . . . . . . . . . . . . . . . . . Bothacking | -11 -10 -9 -9 -9 -8 -8 -8 -8 -8 -6 -6 -6 -5 -4 -4 -4 -3 -3 ------------ Run | Yrd Mat Mat Min Exi Min Mat Sto Gar Rec Fac Low Low Fac Fac Upp Upp Res Arm Used RIF Installer 1 | . . . . . . . . 1 . . . . . . . . . . Robots Hacked 12 | . . . . . . . . 2 1 3 2 . . . 3 1 . . Non-combat 8 | . . . . . . . . . 1 2 2 . . . 2 1 . . Combat 4 | . . . . . . . . 2 . 1 . . . . 1 . . . Robot Hacks Applied 16 | . . . . . . . . 3 1 6 2 . . . 3 1 . . parse_system 9 | . . . . . . . . 2 . 2 2 . . . 2 1 . . start_evac 1 | . . . . . . . . . 1 . . . . . . . . . find_fabricator 1 | . . . . . . . . . . 1 . . . . . . . . find_dsf 1 | . . . . . . . . . . 1 . . . . . . . . drop_inventory 1 | . . . . . . . . . . 1 . . . . . . . . overwrite_iff 1 | . . . . . . . . 1 . . . . . . . . . . streamctrl_high 1 | . . . . . . . . . . 1 . . . . . . . . formatsys_high 1 | . . . . . . . . . . . . . . . 1 . . . Relay Couplers Released 3 | . . . . . . . . 3 . . . . . . . . . . Machine Destruction 3 | . . . . . . . . 3 . . . . . . . . . . Attached 3 | . . . . . . . . 1 1 1 . . . . . . . . Fabnet Peak Effective % . | . . . . . . . . . . . . . . . . . . . Robots Rewired . | . . . . . . . . . . . . . . . . . . . Allies Hacked 1 | . . . . . . . . . . 1 . . . . . . . . Hacks Repelled . | . . . . . . . . . . . . . . . . . . . Allies | -11 -10 -9 -9 -9 -8 -8 -8 -8 -8 -6 -6 -6 -5 -4 -4 -4 -3 -3 -------- Run | Yrd Mat Mat Min Exi Min Mat Sto Gar Rec Fac Low Low Fac Fac Upp Upp Res Arm Total Allies 10 | . . . . . . . 2 1 . 1 . . . 2 1 . . 3 Largest Group 2 | . . . . . . . 2 1 . 1 . . . 2 . . . 2 Highest-Rated Group 86 | . . . . . . . 62 21 . 85 . . . 86 . . . 86 Highest-Rated Ally 85 | . . . . . . . 31 21 . 85 . . . 43 . . . 43 Total Orders . | . . . . . . . . . . . . . . . . . . . Ally Attacks 40 | . . . . . . . 11 3 . 13 . . . 5 . . . 8 Total Damage 1275 | . . . . . . . 209 92 . 798 . . . . . . . 176 Kills 9 | . . . . . . . 2 1 . 6 . . . . . . . . Allies Corrupted . | . . . . . . . . . . . . . . . . . . . Allies Melted . | . . . . . . . . . . . . . . . . . . . Intel | -11 -10 -9 -9 -9 -8 -8 -8 -8 -8 -6 -6 -6 -5 -4 -4 -4 -3 -3 ------- Run | Yrd Mat Mat Min Exi Min Mat Sto Gar Rec Fac Low Low Fac Fac Upp Upp Res Arm Active Infowar (turns) 4878 | . . . . . . . 6 62 167 382 477 604 832 1007 1054 75 212 . Optics 6 | . . . . . . . 6 . . . . . . . . . . . Sensors 4637 | . . . . . . . . 62 167 382 477 604 615 1007 1054 75 194 . Cloaking 1366 | . . . . . . . . . . . . . . 155 936 75 200 . ECM 4004 | . . . . . . . . . . . 460 604 832 905 917 75 211 . Robot Analysis Total 1 | . . . . . . . . . . . . . . 1 . . . . Derelict Logs Recovered 8 | . . . 2 . . . . . . . 2 2 . . 2 . . . Drone Launches . | . . . . . . . . . . . . . . . . . . . Drone Recoveries . | . . . . . . . . . . . . . . . . . . . Exploration | -11 -10 -9 -9 -9 -8 -8 -8 -8 -8 -6 -6 -6 -5 -4 -4 -4 -3 -3 ------------- Run | Yrd Mat Mat Min Exi Min Mat Sto Gar Rec Fac Low Low Fac Fac Upp Upp Res Arm Turns Passed 12494 | 68 913 248 1386 1343 826 286 818 360 167 399 477 604 832 1010 1054 75 347 1281 Spaces Moved 11350 | 38 379 98 554 560 328 92 302 437 425 781 1151 1189 1177 1585 1156 80 324 694 Core 86 | 10 . . . . . . . . . . . . . . . . 64 12 Treads 1851 | . 131 98 554 560 328 92 72 . . . . . . . . . . 16 Legs 925 | 28 248 . . . . . . . . . . . . . . . 14 635 Wheels . | . . . . . . . . . . . . . . . . . . . Hover 6878 | . . . . . . . . . . 273 1151 1189 1177 1585 1156 80 246 21 Flight 1610 | . . . . . . . 230 437 425 508 . . . . . . . 10 Fastest Speed 23 | 50 120 240 240 240 240 160 99 29 23 23 40 40 36 43 43 93 36 50 Average Speed 92 | 148 217 240 240 240 240 245 205 40 28 29 40 40 42 49 84 93 90 149 Slowest Speed 3115 | 300 320 240 240 240 240 328 3115 99 92 100 40 40 43 98 93 93 250 800 Overloaded Moves . | . . . . . . . . . . . . . . . . . . . Propulsion Burnouts . | . . . . . . . . . . . . . . . . . . . Robots Hopped 9 | . . . . . . . . . 1 8 . . . . . . . . Potential Cave-ins 3 | . . . . . . . . . . . . . . . . . 3 . Cave-ins Triggered 1 | . . . . . . . . . . . . . 1 . . . . . Exploration Rate (%) 44 | 4 35 13 87 91 68 9 41 43 60 18 97 90 20 38 85 7 7 31 Regions Visited 18 Branch Regions 10 Pre-discovered Areas 3 | . . . 2 . . . . . . . 1 . . . . . . . Known Exits Taken 17 | 1 1 1 1 1 1 1 1 . 1 1 1 1 1 1 1 1 1 . Unknown Exits Taken . | . . . . . . . . . . . . . . . . . . . Scrap Searched 20 | . . . 3 . 2 . . . . . 8 4 . . 3 . . . Spaces Dug 113 | . . . . . . . . . . . . 62 38 . . . 13 . Terrain Destroyed 740 | . 27 7 . . 5 . . . . . . 74 140 57 3 . 98 329 Melee . | . . . . . . . . . . . . . . . . . . . Projectile 27 | . . . . . . . . . . . . . 3 2 3 . . 19 AOE 713 | . 27 7 . . 5 . . . . . . 74 137 55 . . 98 310 Terrain Rammed . | . . . . . . . . . . . . . . . . . . . Walls Destroyed . | . . . . . . . . . . . . . . . . . . . Machines Disabled . | . . . . . . . . . . . . . . . . . . . Actions | -11 -10 -9 -9 -9 -8 -8 -8 -8 -8 -6 -6 -6 -5 -4 -4 -4 -3 -3 --------- Run | Yrd Mat Mat Min Exi Min Mat Sto Gar Rec Fac Low Low Fac Fac Upp Upp Res Arm Total 12857 | 46 457 104 599 560 345 152 442 565 469 925 1166 1306 1437 1786 1232 80 359 827 Wait 794 | . 25 . 36 . 2 19 33 30 28 89 3 109 192 138 56 . 4 30 Move 11316 | 37 378 97 553 559 327 91 302 435 422 766 1150 1188 1176 1584 1155 79 323 694 Hop 7 | . . . . . . . . . 1 6 . . . . . . . . Pick Up 95 | 2 21 1 4 1 4 11 9 3 3 6 1 . 7 10 3 . 4 5 Fast Attach 84 | 7 3 . . . . 4 5 1 3 11 2 . 2 11 2 . 6 27 Attach 32 | . . 2 . . . 4 4 2 . 3 . . 3 7 1 . 4 2 Detach 8 | . . . . . . 2 1 . . 2 . . . . 1 . . 2 Swap 63 | . 8 . . . 1 8 6 3 4 14 3 1 5 3 2 . 4 1 Drop 122 | . 11 . . . . 11 40 2 4 14 4 . 7 9 3 . 3 14 Fire 268 | . 11 4 6 . 11 1 39 43 . 6 . 8 45 23 9 1 11 50 Melee 21 | . . . . . . 1 1 5 4 7 3 . . . . . . . Ram 2 | . . . . . . . 1 . . . . . . 1 . . . . Kick . | . . . . . . . . . . . . . . . . . . . Crush 1 | . . . . . . . 1 . . . . . . . . . . . Escape Stasis 43 | . . . . . . . . 41 . . . . . . . . . 2 Rewire 1 | . . . . . . . . . . 1 . . . . . . . . Trap . | . . . . . . . . . . . . . . . . . . . Miscellaneous . | . . . . . . . . . . . . . . . . . . . Route ------- -11/Scrapyard -10/Materials (discovered 2 exits: *Mat / Min) -9/Materials -9/Mines (discovered 2 exits: *Mat / *Exi) -9/Exiles (discovered 2 exits: *Min x2) -8/Mines (discovered 2 exits: *Mat x2) -8/Materials -8/Storage (discovered 2 exits: Rec / Gar) -8/Garrison -8/Recycling -6/Factory -6/Lower Caves -6/Lower Caves (discovered 2 exits: *Fac / *Zio) -5/Factory (discovered 8 exits: *Fac x4 / Upp x2 / Ext x2) -4/Factory -4/Upper Caves -4/Upper Caves -3/Research (discovered 2 exits: *Arm / Tes) -3/Armory History --------- Turn | Location | Event 31 | -11/Scrapyard | Identified exit to Materials 31 | -11/Scrapyard | Discovered exit to Materials (range 14) 69 | -11/Scrapyard | Entered Materials 69 | -10/Materials | Evolved 1 slot: Utility x1 307 | -10/Materials | Build established: Hacker-Mutant 924 | -10/Materials | Identified exit to Materials 924 | -10/Materials | Discovered exit to Materials (range 15) 982 | -10/Materials | Identified exit to Mines 982 | -10/Materials | Entered another Materials area 982 | -9/Materials | Evolved 2 slots: Power x1, Propulsion x1 1161 | -9/Materials | Identified exit to Mines 1161 | -9/Materials | Discovered exit to Mines (range 12) 1230 | -9/Materials | Entered Mines 1237 | -9/Mines | Received a Rocket Launcher from a helpful Derelict 1406 | -9/Mines | Learned location of Storage (-8) 1840 | -9/Mines | Learned Materials terminal intel 2293 | -9/Mines | Found a damaged Exp. Sensor Array with a note attached 2298 | -9/Mines | Found Prototype Device 2436 | -9/Mines | Deemed a non-threat by the Exiles lab entrance 2436 | -9/Mines | Identified exit to Exiles 2436 | -9/Mines | Discovered exit to Exiles (range 5) 2510 | -9/Mines | Identified exit to Materials 2510 | -9/Mines | Discovered exit to Materials (range 10) 2616 | -9/Mines | Entered Exiles 2616 | -9/Exiles | Found Exiles lab abandoned 2657 | -9/Exiles | Identified exit to Mines 2657 | -9/Exiles | Discovered exit to Mines (range 15) 3625 | -9/Exiles | Discovered exit to Mines (range 12) 3959 | -9/Exiles | Entered Mines 4387 | -8/Mines | Discovered exit to Materials (range 8) 4442 | -8/Mines | Found a Scrap Suit stashed away for nefarious purposes 4447 | -8/Mines | Found Scrap Suit 4757 | -8/Mines | Discovered exit to Materials (range 10) 4785 | -8/Mines | Entered Materials 4785 | -8/Materials | Evolved 2 slots: Propulsion x2 4786 | -8/Materials | Loaded intel: 11 terminal locations 4935 | -8/Materials | Identified exit to Storage 4935 | -8/Materials | Discovered exit to Storage (range 10) 5071 | -8/Materials | Entered Storage 5091 | -8/Storage | Met a pair of Derelict thieves 5136 | -8/Storage | Build established: Hauler-Mutant 5371 | -8/Storage | Identified exit to Recycling 5889 | -8/Storage | Identified exit to Garrison 5889 | -8/Storage | Entered Garrison 5922 | -8/Garrison | Garrison Relay disabled 5923 | -8/Garrison | Build established: Hacker-Mutant 5941 | -8/Garrison | Triggered checkpoint 6057 | -8/Garrison | Triggered checkpoint 6058 | -8/Garrison | Triggered checkpoint 6074 | -8/Garrison | Lost 4 parts (2p2u) 6093 | -8/Garrison | Installed Relay Interface Framework 6095 | -8/Garrison | Identified Exp. Sensor Array 6224 | -8/Garrison | Discovered exit to Recycling (range 15) 6249 | -8/Garrison | Entered Recycling 6250 | -8/Recycling | Met a Zionite searching for Scraptown 6321 | -8/Recycling | Build established: Hacker-Sprinter 6395 | -8/Recycling | Identified exit to Factory 6395 | -8/Recycling | Discovered exit to Factory (range 8) 6416 | -8/Recycling | Entered Factory 6416 | -6/Factory | Evolved 4 slots: Utility x4 6551 | -6/Factory | Spotted B-75 Beast 6551 | -6/Factory | Hijacked Beast 5a control node with streamctrl_high 6787 | -6/Factory | Identified exit to Lower Caves 6787 | -6/Factory | Discovered exit to Lower Caves (range 10) 6815 | -6/Factory | Entered Lower Caves 6899 | -6/Lower Caves | Encountered a Warlord checkpoint 6920 | -6/Lower Caves | Learned Factory trap positions 6929 | -6/Lower Caves | Identified exit to Lower Caves 6929 | -6/Lower Caves | Discovered exit to Lower Caves (range 15) 6967 | -6/Lower Caves | Build established: Hacker-Mutant 7292 | -6/Lower Caves | Entered another Lower Caves area 7310 | -6/Lower Caves | Encountered a Warlord checkpoint 7411 | -6/Lower Caves | Identified exit to Zion 7411 | -6/Lower Caves | Discovered exit to Zion (range 14) 7618 | -6/Lower Caves | Spotted B-75 Beast 7822 | -6/Lower Caves | Identified exit to Factory 7822 | -6/Lower Caves | Discovered exit to Factory (range 11) 7896 | -6/Lower Caves | Entered Factory 7896 | -5/Factory | Evolved 2 slots: Propulsion x1, Utility x1 7897 | -5/Factory | Identified exit to Extension 7898 | -5/Factory | Loaded intel: 95 trap records 8113 | -5/Factory | Identified exit to Upper Caves 8283 | -5/Factory | Repaired Exp. Sensor Array 8339 | -5/Factory | Crushed by falling debris 8391 | -5/Factory | Identified exit to Factory 8391 | -5/Factory | Discovered exit to Factory (range 7) 8498 | -5/Factory | Spotted B-75 Beast 8728 | -5/Factory | Entered another Factory area 8728 | -4/Factory | Evolved 2 slots: Utility x2 8909 | -4/Factory | Lost 4 parts (1n2u1w) 8969 | -4/Factory | Repaired Imp. Utility Shielding 9169 | -4/Factory | Fabricated X-67 Chaingunner (x2) 9533 | -4/Factory | Spotted B-86 Titan 9724 | -4/Factory | Identified exit to Upper Caves 9724 | -4/Factory | Discovered exit to Upper Caves (range 15) 9738 | -4/Factory | Entered Upper Caves 9828 | -4/Upper Caves | Attracted the attention of an 0b10 checkpoint 9836 | -4/Upper Caves | Learned 8 Research zone layouts 10761 | -4/Upper Caves | Identified exit to Upper Caves 10761 | -4/Upper Caves | Discovered exit to Upper Caves (range 15) 10792 | -4/Upper Caves | Entered another Upper Caves area 10857 | -4/Upper Caves | Identified exit to Research 10857 | -4/Upper Caves | Discovered exit to Research (range 12) 10867 | -4/Upper Caves | Entered Research 10867 | -3/Research | Evolved 2 slots: Weapon x2 10868 | -3/Research | Identified exit to Testing 10939 | -3/Research | Identified exit to DSF 11044 | -3/Research | Assembled infested ambush trap array 11155 | -3/Research | Core integrity fell below 50% 11195 | -3/Research | Found Prototype Device 11195 | -3/Research | Identified Exp. Shield Generator 11207 | -3/Research | Identified exit to Armory 11207 | -3/Research | Discovered exit to Armory (range 7) 11208 | -3/Research | Lost 26 parts (2p6n13u5w) 11214 | -3/Research | Entered Armory 11215 | -3/Armory | Met VL-GR5, who suggested a friendly competition 11624 | -3/Armory | Found Hvy. Insulated Plating 11628 | -3/Armory | Found Hvy. Insulated Plating 11631 | -3/Armory | Found Fusion Bomb Launcher 11671 | -3/Armory | Build established: Scavenger-Tank 11720 | -3/Armory | Fabricated X-67 Chaingunner (x2) 11724 | -3/Armory | VL-GR5 left a parting gift on exiting Armory 11802 | -3/Armory | Core integrity fell below 20% 12249 | -3/Armory | Fabricated A-15 Conveyor? 12496 | -3/Armory | Core destroyed Last Messages --------------- 12415_ The unstable cave ceiling collapses. 12422_ Acquired 63 matter. 12424_ Acquired 14 matter. 12425_ Acquired 6 matter. 12471_ S-43 Plague knocked back. 12475_ System corrupted: Heat flow error (+124). 12482_ S-43 Plague knocked back. 12485_ Overheating: Energy bleed (-113). 12485_ Destroyed Lgt. Antimatter Reactor. 12485_ S-43 Plague knocked back. 12488_ S-43 Plague destroyed. 12490_ Overheating: System interference. 12490_ Adv. Heat Sink temporarily disabled. 12490_ Enh. Hardcell Cannon temporarily disabled. 12491_ S-43 Plague destroyed. 12492_ Activated shielding mode. 12493_ Power failure, Particle Reactor shutdown. 12493_ Power failure, Rnf. Antimatter Reactor shutdown. 12495_ Overheating: Core damaged (-156). 12496_ Overheating: Core damaged (-247). Map ----- +----------------------------------------------------+ | ?????????????????????????????????????????????????? | | ?????????????????????????????????????????????????? | | ?????????????????????????????????????????????????? | | ?????????????????????????????????????????????????? | | ?????????????????????????????????????????????????? | | ?????????????????????????????????????????????????? | | ?????????????????????????????????????????????????? | | ?????????????????????????????????????????????????? | | ?????????????????????????????????????????????????? | | ?????????????????????????????????????????????????? | | ?????????????????????????????????????????????????? | | ?????????????????????????????????????????????????? | | ????????????????????????????? ??????????????????? | | ????????????????????????????? ??????????????????? | | ????????????????????#???????? ??????????????????? | | ????????????????????# ??????? #?????????????????? | | ????????????????????#%??????? "?????????????????? | | ???????????????######;####### #?????????????????? | | ???????????????# # #?????????????????? | | ???????????????# # #?????????????????? | | ???????????????# # #?????????????????? | | ???????????????# === # #?????????????????? | | ???????????????# === # #?????????????????? | | ???????????????# === # #?????????????????? | | ???????????????# ;%%#?????????????????? | | ???????????????# @ =%%#?????????????????? | | ???????????????# ; %%#????????????????? | | ???????????????# # ;#????????????????? | | ???????????????# # ##????????????????? | | ???????????????# # #?????????????????? | | ???????????????############## ######????????????? | | ??????????????????# #???????# # #????????????? | | ????????????????###"##??????# # ]] #????????????? | | ????????????????# ######## # ]] #????????????? | | ????????????????# = ! # ]] #????????????? | | ????????????????# + [[ #????????????? | | ????##+???????# ######### # [[ #????????????? | | ????# ??????## ##??# # # [[ #????????????? | | #???# * ??????# #####!= + # #????????????? | | #????# #??????# # #!= ### #????????????? | | #????# ######?# # #== =#?######????????????# | | ##???# #?# # # #?????????????????### | | T"???# #?# # ######?????????????????+ | | "????# ### # ############???????????# | | #????# # " ## #???????????# # | | #????# # ## #???????????? # | | ###### # +### """ """ #???????????# # | | # ^ = # """ """ #???????????# # | | ^ + """ """ #???????????# # | | ]= =[ ""# #???????????# # | +----------------------------------------------------+ Best States ------------- Heat Dissipation 122 Energy Generation 39 Energy Capacity 565 Matter Stores 300 Matter Capacity 300 Sight Range 18 Robot Scan Range 20 Terrain Scan Density 210 ECM Strength 2 Cloak Strength 3 Additional Mass Support 12 Armor Coverage 2025 Resistance: KI 35 Resistance: TH 35 Resistance: EX 35 Resistance: EM 65 Resistance: I 35 Resistance: S 35 Resistance: P 35 Core Shielding 20 Propulsion Shielding 33 Utility Shielding 66 Weapon Shielding 66 Evasion (%) 65 Targeting Accuracy 5 Recoil Reduction 5 Offensive Hacking 34 Defensive Hacking 12 Relay Coupler Types 3 Relay Coupler Value 60 Item Schematics ----------------- None Robot Schematics ------------------ X-67 Chaingunner | -6/Factory | Hacked Fabricated ------------ X-67 Chaingunner | x2 | -4/Factory X-67 Chaingunner | x2 | -3/Armory A-15 Conveyor | x1 | -3/Armory | Preloaded Repaired ---------- Exp. Sensor Array | 17% | -5/Factory Imp. Utility Shielding | 32% | -4/Factory Alien Tech Used ----------------- None Achievements -------------- Assimilation Complete Can't Catch Me Explorer It Was An Accident, I Swear Packrat Party Time Turtlemind Challenges ------------ None Game ------ Seed ScrapFlightTendrils Manual? 0 Play Time 04:33:22 Cumulative 20.7 hours Start 2025.06.18 @ 16:38:28 End 2025.07.07 @ 17:17:25 Sessions 7 Manual Loads 0 Difficulty Explorer Special Mode None Game No. 14 Rogue 6 Adventurer 0 Explorer 8 Win Type - Total 0 Types 0/0/0/0/0/0/0/0/0/0 Lore% 10 Gallery% 24 Achievement% 23 Wizard Run 0 Options --------- Layout 1 ASCII 0 Keyboard 0 Movement Mouse Keybinds 0 Fullscreen 1 Font 32/SmallcapsGlow Map View 77x35 Zoom Use 0% Tactical HUD 1 Map Filters NONE Filters NONE Steam 1 RUN: 2343c7c2-0574-4f2a-abef-dc4f3e883e54